fUST/lending_fUST_20251222
["ID","MTS","AMOUNT","RATE_DAILY","PERIOD"]
[399429378,1766345039166,1042.44,8.162e-05,2]
[399429381,1766345060014,5000.0,8.364e-05,2]
[399429384,1766345082922,5000.0,8.374e-05,2]
[399429385,1766345105754,5000.0,8.374e-05,2]
[399429388,1766345120734,0.01,7.753e-05,2]
[399429389,1766345120758,510.36,7.753e-05,2]
[399429390,1766345121153,1020.74,8.123e-05,2]
[399429403,1766345129546,5000.0,8.374e-05,2]
[399429416,1766345142282,682.0,0.00032876,60]
[399429421,1766345153247,3468.91,8.374e-05,2]
[399429422,1766345153275,1531.09,8.374e-05,2]
[399429425,1766345155791,209.4069483,7.462e-05,2]
[399429453,1766345176792,5000.0,8.374e-05,2]
[399429461,1766345200640,5000.0,8.374e-05,2]
[399429462,1766345200707,0.01,7.771e-05,2]
[399429463,1766345200730,568.42,7.771e-05,2]
[399429464,1766345201137,1136.85,8.141e-05,2]
[399429474,1766345217014,252.37896019,8.374e-05,2]
[399429475,1766345224826,5000.0,8.374e-05,2]
[399429505,1766345248700,3042.36103981,8.374e-05,2]
[399429506,1766345248727,1957.63896019,8.374e-05,2]
[399429514,1766345260647,169.9057501,3.701e-05,2]
[399429527,1766345265000,1698.43276243,8.374e-05,2]
[399429533,1766345272842,5000.0,8.374e-05,2]
[399429539,1766345282952,636.71,7.789e-05,2]
[399429540,1766345283274,537.32252728,8.285e-05,2]
[399429541,1766345283304,10000.01,8.285e-05,2]
[399429542,1766345283332,10000.01,8.285e-05,2]
[399429543,1766345283358,10000.01,8.285e-05,2]
[399429552,1766345300133,-5000.0,8.078e-05,2]
[399429553,1766345300506,-1273.43,8.16e-05,2]
[399429562,1766345320472,5000.0,8.16e-05,2]
[399429564,1766345321463,-497.55656421,8.284e-05,2]
[399429567,1766345322953,-226.0902851,8.284e-05,2]
[399429568,1766345324305,-202.36140151,8.284e-05,2]
[399429571,1766345330980,-160.36195213,8.284e-05,2]
[399429579,1766345343434,5000.0,8.274e-05,2]
[399429588,1766345363156,706.35,7.852e-05,2]
[399429593,1766345363562,1412.7,8.226e-05,2]
[399429610,1766345367578,2880.96,8.274e-05,2]
[399429624,1766345427351,171.467741,0.00030137,120]
[399429656,1766345431691,-2119.04,8.274e-05,2]
[399429658,1766345431700,-536.0,8.274e-05,2]
[399429660,1766345431710,-500.0,8.284e-05,2]
[399429662,1766345431720,-104.15113425,8.284e-05,2]
[399429666,1766345431748,-395.84886575,8.284e-05,2]
[399429669,1766345431758,-514.26141306,8.284e-05,2]
[399429672,1766345431767,-113.62979705,8.284e-05,2]
[399429674,1766345431776,-300.0,8.284e-05,2]
[399429676,1766345431786,-300.0,8.284e-05,2]
[399429678,1766345431795,-1200.0,8.284e-05,2]
[399429680,1766345431804,-299.94148659,8.284e-05,2]
[399429681,1766345431814,-1616.61914014,8.285e-05,2]
[399429682,1766345434036,294.90157059,8.072e-05,2]
[399429715,1766345437669,-29732.58038744,8.285e-05,2]
[399429717,1766345437684,-63350.92447005,8.285e-05,2]
[399429720,1766345437698,-286713.86725661,8.285e-05,2]
[399429722,1766345437711,-834.12429152,8.285e-05,2]
[399429727,1766345437756,-2326.24435221,8.285e-05,2]
[399429730,1766345437767,-14141.60820245,8.285e-05,2]
[399429976,1766345440134,-3e-08,8.285e-05,2]
[399429979,1766345440148,-20731.95263763,8.285e-05,2]
[399430239,1766345442829,-829.53625222,8.285e-05,2]
[399430241,1766345442840,-419.18467264,8.285e-05,2]
[399430243,1766345442851,-470.31115789,8.285e-05,2]
[399430248,1766345442890,-1874.01888232,8.285e-05,2]
[399430250,1766345442901,-641.35815235,8.285e-05,2]
[399430408,1766345445820,-5663.28912534,8.285e-05,2]
[399430430,1766345453714,5000.0,8.274e-05,2]
[399430431,1766345462336,300.0,8.284e-05,2]
[399430432,1766345471634,708.58,7.951e-05,2]
[399430434,1766345477811,5000.0,8.285e-05,2]
[399430435,1766345493995,4555.69377612,8.285e-05,2]
[399430436,1766345502443,5000.0,8.285e-05,2]
[399430437,1766345518909,444.31622388,8.284e-05,2]
[399430438,1766345518935,55.68377612,8.284e-05,2]
[399430439,1766345518963,199.05526029,8.284e-05,2]
[399430440,1766345519030,500.0,8.284e-05,2]
[399430441,1766345519059,299.22275973,8.284e-05,2]
[399430442,1766345519092,500.0,8.284e-05,2]
[399430443,1766345519152,500.0,8.284e-05,2]
[399430444,1766345519199,500.0,8.284e-05,2]
[399430445,1766345519227,500.0,8.284e-05,2]
[399430446,1766345522372,300.0,8.284e-05,2]
[399430447,1766345523494,-4544.61098688,8.285e-05,2]
[399430448,1766345524184,-10000.01,8.285e-05,2]
[399430462,1766345553395,720.58,7.837e-05,2]
[399430463,1766345553810,1441.16,8.21e-05,2]
[399430492,1766345633699,710.24,7.793e-05,2]
[399430493,1766345634084,1420.48,8.164e-05,2]
[399430495,1766345640850,324.67958109,7.688e-05,2]
[399430496,1766345642416,584.42324596,7.849e-05,2]
[399430497,1766345642787,300.0,8.283e-05,2]
[399430499,1766345643999,1038.97465948,8.01e-05,2]
[399430501,1766345654537,216.7837987,7.728e-05,2]
[399430509,1766345691550,-1200.0,8.284e-05,2]
[399430510,1766345698300,500.0,8.284e-05,2]
[399430511,1766345698351,500.0,8.284e-05,2]
[399430512,1766345698388,500.0,8.284e-05,2]
[399430513,1766345698449,500.0,8.284e-05,2]
[399430514,1766345698483,500.0,8.284e-05,2]
[399430515,1766345698519,500.0,8.284e-05,2]
[399430516,1766345698557,500.0,8.284e-05,2]
[399430517,1766345698590,500.0,8.284e-05,2]
[399430518,1766345698620,500.0,8.284e-05,2]
[399430519,1766345698663,391.4947981,8.284e-05,2]
[399430520,1766345698709,500.0,8.284e-05,2]
[399430521,1766345698823,500.0,8.284e-05,2]
[399430522,1766345702121,300.0,8.284e-05,2]
[399430523,1766345705281,300.0,8.284e-05,2]
[399430524,1766345707247,500.0,8.284e-05,2]
[399430525,1766345707369,564.84400989,8.284e-05,2]
[399430526,1766345707465,43.67119201,8.284e-05,2]
[399430527,1766345707487,456.32880799,8.284e-05,2]
[399430528,1766345707523,500.0,8.284e-05,2]
[399430529,1766345707694,500.0,8.284e-05,2]
[399430530,1766345708063,1200.0,8.284e-05,2]
[399430531,1766345714527,685.03,7.77e-05,2]
[399430532,1766345715138,1370.06,8.14e-05,2]
[399430533,1766345731139,5000.0,8.284e-05,2]
[399430534,1766345731198,270.36383238,7.957e-05,2]
[399430535,1766345754560,4729.64616762,8.284e-05,2]
[399430536,1766345754583,270.35383238,8.284e-05,2]
[399430537,1766345762361,300.0,8.284e-05,2]
[399430538,1766345778121,5000.0,8.284e-05,2]
[399430539,1766345785099,311.02475108,8.284e-05,2]
[399430540,1766345786950,-298.88333648,8.284e-05,2]
[399430541,1766345787537,-4452.13465036,8.285e-05,2]
[399430542,1766345787700,-10000.01,8.285e-05,2]
[399430543,1766345787918,-10000.01,8.285e-05,2]
[399430544,1766345788116,-10000.01,8.285e-05,2]
[399430545,1766345788404,-10000.01,8.285e-05,2]
[399430546,1766345788589,-10000.01,8.285e-05,2]
[399430547,1766345788868,-10000.01,8.285e-05,2]
[399430548,1766345807694,-432.50356156,7.763e-05,2]
[399430549,1766345809678,-398.01602104,7.763e-05,2]
[399430550,1766345812399,-453.10035493,7.763e-05,2]
[399430551,1766345814527,-670.79360496,7.763e-05,2]
[399430553,1766345819866,-358.05747073,7.763e-05,2]
[399430554,1766345822423,-321.88169653,7.763e-05,2]
[399430555,1766345828334,-157.31393336,7.763e-05,2]
[399430558,1766345830180,-2208.33335689,7.763e-05,2]
[399430561,1766345831262,-206.8269527,7.841e-05,2]
[399430562,1766345837108,-290.11611043,7.841e-05,2]
[399430569,1766345845849,5000.0,7.763e-05,2]
[399430570,1766345853482,-170.60693687,7.841e-05,2]
[399430571,1766345871624,-5000.0,8.132e-05,2]
[399430572,1766345876966,0.01,7.767e-05,2]
[399430573,1766345876989,675.26,7.767e-05,2]
[399430574,1766345877018,1350.54,8.137e-05,2]
[399430575,1766345893559,5000.0,8.214e-05,2]
[399430576,1766345911091,-225.21906831,8.09e-05,2]
[399430577,1766345911120,-300.0,8.283e-05,2]
[399430578,1766345912205,500.0,8.283e-05,2]
[399430579,1766345912255,503.76965199,8.283e-05,2]
[399430580,1766345912296,500.0,8.283e-05,2]
[399430581,1766345912397,295.39080692,8.283e-05,2]
[399430582,1766345912471,500.0,8.283e-05,2]
[399430583,1766345916785,182.89712988,7.929e-05,2]
[399430584,1766345916864,197.35157262,8.283e-05,2]
[399430585,1766345916910,500.0,8.283e-05,2]
[399430586,1766345916939,170.25562971,8.283e-05,2]
[399430587,1766345916967,500.0,8.283e-05,2]
[399430588,1766345917000,500.0,8.283e-05,2]
[399430589,1766345917045,500.0,8.283e-05,2]
[399430590,1766345917077,154.61053312,8.283e-05,2]
[399430591,1766345917112,500.0,8.283e-05,2]
[399430592,1766345917153,500.0,8.283e-05,2]
[399430593,1766345917200,500.0,8.283e-05,2]
[399430594,1766345917259,500.0,8.283e-05,2]
[399430595,1766345917296,500.0,8.283e-05,2]
[399430596,1766345917347,500.0,8.283e-05,2]
[399430597,1766345917401,500.0,8.283e-05,2]
[399430598,1766345917445,445.29653914,8.283e-05,2]
[399430599,1766345917467,54.70346086,8.283e-05,2]
[399430600,1766345917502,500.0,8.283e-05,2]
[399430601,1766345917536,500.0,8.283e-05,2]
[399430602,1766345917571,500.0,8.283e-05,2]
[399430603,1766345917622,500.0,8.283e-05,2]
[399430604,1766345917661,500.0,8.283e-05,2]
[399430605,1766345917697,500.0,8.283e-05,2]
[399430606,1766345918003,500.0,8.283e-05,2]
[399430607,1766345918039,500.0,8.283e-05,2]
[399430608,1766345918083,500.0,8.283e-05,2]
[399430609,1766345918145,587.38674121,8.283e-05,2]
[399430610,1766345918192,500.0,8.283e-05,2]
[399430611,1766345918354,4357.91979793,8.283e-05,2]
[399430612,1766345918378,642.08020207,8.283e-05,2]
[399430613,1766345920074,329.21483379,7.929e-05,2]
[399430614,1766345939817,500.0,8.283e-05,2]
[399430615,1766345940248,500.0,8.283e-05,2]
[399430616,1766345940288,317.45857168,8.283e-05,2]
[399430617,1766345940457,500.0,8.283e-05,2]
[399430618,1766345942112,5000.0,8.283e-05,2]
[399430619,1766345942217,300.0,8.283e-05,2]
[399430620,1766345944665,500.0,8.283e-05,2]
[399430621,1766345945023,500.0,8.283e-05,2]
[399430622,1766345945340,500.0,8.283e-05,2]
[399430623,1766345945672,411.25639246,8.283e-05,2]
[399430624,1766345945695,88.74360754,8.283e-05,2]
[399430625,1766345945725,500.0,8.283e-05,2]
[399430626,1766345945754,500.0,8.283e-05,2]
[399430627,1766345945784,500.0,8.283e-05,2]
[399430628,1766345945813,500.0,8.283e-05,2]
[399430629,1766345945842,500.0,8.283e-05,2]
[399430630,1766345945875,500.0,8.283e-05,2]
[399430631,1766345945908,587.38674121,8.283e-05,2]
[399430632,1766345945938,500.0,8.283e-05,2]
[399430633,1766345953796,-4878.58311211,8.284e-05,2]
[399430634,1766345953827,-10000.01,8.284e-05,2]
[399430635,1766345956878,678.62,7.82e-05,2]
[399430636,1766345957278,1357.24,8.192e-05,2]
[399430637,1766345964369,153.56074696,7.477e-05,2]
[399430638,1766345964647,3634.45890429,8.283e-05,2]
[399430639,1766345964674,1365.54109571,8.283e-05,2]
[399430640,1766345966045,276.40934453,7.801e-05,2]
[399430641,1766345967898,491.39439028,7.964e-05,2]
[399430642,1766345989209,5000.0,8.283e-05,2]
[399430643,1766346001674,300.0,8.283e-05,2]
[399430644,1766346001889,300.0,8.283e-05,2]
[399430645,1766346002022,300.0,8.283e-05,2]
[399430646,1766346005554,4100.01,8.283e-05,2]
[399430647,1766346005576,899.99,8.283e-05,2]
[399430648,1766346006161,300.0,8.283e-05,2]
[399430649,1766346007566,1200.0,8.283e-05,2]
[399430650,1766346010431,314.6709675,8.283e-05,2]
[399430651,1766346014380,5000.0,8.283e-05,2]
[399430652,1766346030773,826.48736999,8.283e-05,2]
[399430653,1766346037029,726.87,7.785e-05,2]
[399430654,1766346037448,731.99166251,8.156e-05,2]
[399430655,1766346037471,721.75833749,8.156e-05,2]
[399430656,1766346038563,5000.0,8.283e-05,2]
[399430700,1766346058043,386.14444984,7.933e-05,2]
[399430703,1766346061814,3892.10721267,8.283e-05,2]
[399430704,1766346061837,1107.89278733,8.283e-05,2]
[399430730,1766346084688,5000.0,8.283e-05,2]
[399430753,1766346108463,3892.11721267,8.283e-05,2]
[399430761,1766346117877,760.9,7.8e-05,2]
[399430762,1766346118300,1521.8,8.172e-05,2]
[399430816,1766346191288,652.7057935,8.219e-05,2]
[399430822,1766346198605,756.52,7.798e-05,2]
[399430823,1766346198996,1513.05,8.17e-05,2]
[399430828,1766346206589,431.78026504,8.09e-05,2]
[399430830,1766346209050,1725.3939391,8.09e-05,2]
[399430854,1766346283919,754.2,7.795e-05,2]
[399430855,1766346284315,1508.41,8.166e-05,2]
[399430857,1766346286441,2657.95000236,8.185e-05,2]
[399430858,1766346286472,10000.01,8.185e-05,2]
[399430859,1766346286503,10000.01,8.185e-05,2]
[399430871,1766346312509,-231.38857185,8.09e-05,2]
[399430872,1766346313294,924.62873312,8.09e-05,2]
[399430876,1766346319033,-388.02875159,8.103e-05,2]
[399430881,1766346322276,-414.98146343,8.103e-05,2]
[399430883,1766346324958,-309.78438185,8.103e-05,2]
[399430884,1766346329304,-203.20193369,8.103e-05,2]
[399430896,1766346331946,-158.05747073,8.103e-05,2]
[399430900,1766346335746,-199.58608623,8.103e-05,2]
[399430901,1766346337769,-447.65814952,8.103e-05,2]
[399430905,1766346341779,-184.55139363,8.103e-05,2]
[399430907,1766346342778,-178.12625704,8.103e-05,2]
[399430915,1766346349058,1813.245417,7.25e-05,2]
[399430916,1766346349962,-625.14159937,8.103e-05,2]
[399430922,1766346356304,-192.90163371,8.103e-05,2]
[399430926,1766346358994,-487.18222103,8.103e-05,2]
[399430927,1766346361038,-312.55713122,8.103e-05,2]
[399430929,1766346364295,830.32,7.768e-05,2]
[399430930,1766346364820,-197.79623766,8.103e-05,2]
[399430938,1766346372685,-255.81622234,8.103e-05,2]
[399430945,1766346374215,-350.36085829,8.103e-05,2]
[399431013,1766346448192,845.94,7.758e-05,2]
[399431035,1766346472227,5000.0,8.093e-05,2]
[399431051,1766346496491,123.09870618,8.093e-05,2]
[399431052,1766346496514,4876.90129382,8.093e-05,2]
[399431059,1766346510356,975.94169743,7.929e-05,2]
[399431061,1766346512751,178.3993364,7.929e-05,2]
[399431063,1766346515194,441.81186415,7.929e-05,2]
[399431065,1766346518119,795.26135546,7.929e-05,2]
[399431066,1766346519611,5000.0,8.093e-05,2]
[399431068,1766346520745,1413.79796527,7.929e-05,2]
[399431071,1766346525317,220.82116173,7.929e-05,2]
[399431072,1766346527823,222.03748477,8.061e-05,2]
[399431074,1766346528865,924.65,7.761e-05,2]
[399431080,1766346542598,2218.70338823,8.117e-05,2]
[399431081,1766346542622,2781.29661177,8.117e-05,2]
[399431088,1766346566104,5000.0,8.121e-05,2]
[399431106,1766346590936,5000.0,8.121e-05,2]
[399431115,1766346609413,0.01,7.776e-05,2]
[399431116,1766346609436,931.41,7.776e-05,2]
[399431119,1766346614269,5000.0,8.121e-05,2]
[399431122,1766346616740,301.7135502,7.736e-05,2]
[399431123,1766346619233,344.81548594,7.736e-05,2]
[399431125,1766346621619,171.71008772,7.929e-05,2]
[399431129,1766346624297,393.10433828,7.929e-05,2]
[399431130,1766346627270,707.58780891,7.929e-05,2]
[399431178,1766346631941,-1257.9338825,7.929e-05,2]
[399431180,1766346631950,-534.0,8.143e-05,2]
[399431182,1766346631960,-292.90566975,8.143e-05,2]
[399431183,1766346631970,-1862.84,8.146e-05,2]
[399431185,1766346631979,-296.0,8.183e-05,2]
[399431187,1766346631989,-300.0,8.183e-05,2]
[399431189,1766346631999,-300.0,8.183e-05,2]
[399431190,1766346632008,-1200.0,8.183e-05,2]
[399431192,1766346632017,-500.0,8.184e-05,2]
[399431194,1766346632027,-500.0,8.184e-05,2]
[399431195,1766346632036,-256.77356484,8.184e-05,2]
[399431196,1766346632045,-1200.0,8.184e-05,2]
[399431198,1766346632054,-58377.1306859,8.185e-05,2]
[399431200,1766346632066,-398605.8621462,8.185e-05,2]
[399431202,1766346632077,-16535.07186975,8.185e-05,2]
[399431265,1766346637841,-5000.0,7.85e-05,2]
[399431267,1766346637850,-265.25710867,7.929e-05,2]
[399431269,1766346637859,-477.4627956,7.929e-05,2]
[399431271,1766346637869,-280.91826094,8.183e-05,2]
[399431273,1766346637879,-5668.08635972,8.185e-05,2]
[399431276,1766346637895,-961.71379467,8.185e-05,2]
[399431278,1766346637906,-1703.45085993,8.185e-05,2]
[399431280,1766346637922,-571.28614243,8.185e-05,2]
[399431284,1766346637949,-562.31420507,8.185e-05,2]
[399431286,1766346637960,-3032.07899266,8.185e-05,2]
[399431288,1766346637972,-2472.99554256,8.185e-05,2]
[399431291,1766346637984,-435.0,8.185e-05,2]
[399431491,1766346640108,-848.82274773,7.929e-05,2]
[399431493,1766346640118,-2231.99957445,8.185e-05,2]
[399431495,1766346640129,-528.89051107,8.185e-05,2]
[399431521,1766346640353,-3e-08,8.185e-05,2]
[399431524,1766346640371,-733.73686278,8.185e-05,2]
[399431526,1766346640382,-890.80323467,8.185e-05,2]
[399431838,1766346643212,-420.0,8.185e-05,2]
[399431853,1766346643328,-1959.42071875,8.185e-05,2]
[399431935,1766346646006,-246.73977307,8.061e-05,2]
[399431936,1766346646016,-444.13159153,8.061e-05,2]
[399431937,1766346646026,-1666.85538501,8.185e-05,2]
[399431946,1766346646841,-778.77913156,8.185e-05,2]
[399431947,1766346646853,-907.21964252,8.185e-05,2]
[399433069,1766346663881,-540.32946598,7.98e-05,2]
[399433070,1766346667740,-198.1061758,7.98e-05,2]
[399433071,1766346670472,-338.10163802,7.98e-05,2]
[399433072,1766346673133,-333.7274594,7.98e-05,2]
[399433077,1766346680657,10000.01,7e-05,2]
[399433078,1766346680680,4002.79,7e-05,2]
[399433080,1766346692765,-286.8,7.912e-05,2]
[399433082,1766346694839,-388.03294265,7.912e-05,2]
[399433092,1766346701034,-155.99705735,7.912e-05,2]
[399433108,1766346721473,5000.0,7.84e-05,2]
[399433122,1766346744520,1463.72667644,7.85e-05,2]
[399433155,1766346834161,201.79757041,7.605e-05,2]
[399433156,1766346856844,910.91,7.793e-05,2]
[399433157,1766346864185,5000.0,7.85e-05,2]
[399433158,1766346929983,789.56727384,7.658e-05,2]
[399433159,1766346943266,903.65,7.787e-05,2]
[399433160,1766346988615,-5000.0,7.98e-05,2]
[399433161,1766347001267,0.01,7.98e-05,2]
[399433162,1766347001290,4999.99,7.98e-05,2]
[399433163,1766347008824,-292.34431145,8.02e-05,2]
[399433164,1766347024284,904.49,7.775e-05,2]
[399433165,1766347025560,5000.0,8.02e-05,2]
[399433166,1766347031009,-1200.0,8.06e-05,2]
[399433167,1766347048462,5000.0,8.06e-05,2]
[399433168,1766347051577,-156.06533983,8.061e-05,2]
[399433169,1766347051605,-280.9176117,8.061e-05,2]
[399433170,1766347070801,-1808.98,8.145e-05,2]
[399433171,1766347071357,5000.0,8.061e-05,2]
[399433172,1766347091108,-300.0,8.156e-05,2]
[399433173,1766347094258,5000.0,8.145e-05,2]
[399433174,1766347104475,873.87,7.801e-05,2]
[399433175,1766347112621,500.0,8.156e-05,2]
[399433176,1766347112685,550.0,8.156e-05,2]
[399433177,1766347114531,-3724.89054401,8.157e-05,2]
[399433178,1766347114690,-10000.01,8.157e-05,2]
[399433179,1766347114719,500.0,8.156e-05,2]
[399433180,1766347114759,500.0,8.156e-05,2]
[399433181,1766347114792,500.0,8.156e-05,2]
[399433182,1766347114831,500.0,8.156e-05,2]
[399433183,1766347114872,476.14,8.156e-05,2]
[399433184,1766347114895,23.86,8.156e-05,2]
[399433185,1766347114947,500.0,8.156e-05,2]
[399433186,1766347114978,247.53991504,8.156e-05,2]
[399433187,1766347115057,218.35406012,8.156e-05,2]
[399433188,1766347115090,531.16211932,8.156e-05,2]
[399433189,1766347115244,-6002.95390552,8.157e-05,2]
[399433190,1766347115360,-10000.01,8.157e-05,2]
[399433191,1766347136130,-5000.0,8.075e-05,2]
[399433192,1766347141946,0.01,8.075e-05,2]
[399433193,1766347141974,4999.99,8.075e-05,2]
[399433194,1766347159949,-433.02232654,8.156e-05,2]
[399433195,1766347165396,5000.0,8.156e-05,2]
[399433196,1766347184581,-4847.06913642,8.157e-05,2]
[399433197,1766347184958,305.87172716,7.835e-05,2]
[399433198,1766347184982,556.87827284,7.835e-05,2]
[399433199,1766347188094,5000.0,8.157e-05,2]
[399433200,1766347211760,5000.0,8.163e-05,2]
[399433201,1766347212221,500.0,8.156e-05,2]
[399433202,1766347212275,500.0,8.156e-05,2]
[399433203,1766347212336,463.86372026,8.156e-05,2]
[399433204,1766347216674,375.1538056,8.09e-05,2]
[399433205,1766347221455,192.33602283,8.156e-05,2]
[399433206,1766347221487,322.4890884,8.156e-05,2]
[399433207,1766347221516,500.0,8.156e-05,2]
[399433208,1766347221802,173.3850549,8.156e-05,2]
[399433209,1766347223692,-300.0,8.184e-05,2]
[399433210,1766347223722,-300.0,8.184e-05,2]
[399433211,1766347223752,-1200.0,8.184e-05,2]
[399433212,1766347223782,-300.0,8.184e-05,2]
[399433213,1766347223811,-535.0,8.184e-05,2]
[399433214,1766347233662,192.33602283,8.156e-05,2]
[399433215,1766347234225,391.62789792,8.156e-05,2]
[399433216,1766347235130,4146.04607925,8.184e-05,2]
[399433217,1766347235153,853.95392075,8.184e-05,2]
[399433218,1766347241900,500.0,8.184e-05,2]
[399433219,1766347241962,538.11562857,8.184e-05,2]
[399433220,1766347251173,170.12912437,8.184e-05,2]
[399433221,1766347258019,5000.0,8.184e-05,2]
[399433222,1766347264719,170.12912437,8.184e-05,2]
[399433223,1766347267815,2767.68220194,7.441e-05,2]
[399433224,1766347267836,10000.01,7.441e-05,2]
[399433225,1766347267856,6033.48224116,7.441e-05,2]
[399433226,1766347270395,858.46,7.775e-05,2]
[399433227,1766347270784,1716.91,8.145e-05,2]
[399433228,1766347273742,500.0,8.184e-05,2]
[399433229,1766347273771,500.0,8.184e-05,2]
[399433230,1766347274073,391.15775884,8.184e-05,2]
[399433231,1766347274097,108.84224116,8.184e-05,2]
[399433232,1766347278346,500.0,8.184e-05,2]
[399433233,1766347281949,5000.0,8.184e-05,2]
[399433234,1766347284438,500.0,8.184e-05,2]
[399433237,1766347344451,-300.0,8.056e-05,2]
[399433238,1766347359396,-858.83,7.905e-05,2]
[399433239,1766347392228,-488.35203654,8.056e-05,2]
[399433240,1766347392258,-300.0,8.056e-05,2]
[399433241,1766347392287,-275.0,8.056e-05,2]
[399433242,1766347392316,-225.0,8.056e-05,2]
[399433243,1766347410685,-197.28870018,8.056e-05,2]
[399433244,1766347410713,-500.0,8.056e-05,2]
[399433245,1766347410741,-500.0,8.056e-05,2]
[399433246,1766347410768,-500.0,8.056e-05,2]
[399433247,1766347410795,-500.0,8.056e-05,2]
[399433248,1766347410824,-500.0,8.056e-05,2]
[399433249,1766347410852,-500.0,8.056e-05,2]
[399433250,1766347410879,-500.0,8.056e-05,2]
[399433251,1766347410907,-500.0,8.056e-05,2]
[399433252,1766347410935,-500.0,8.056e-05,2]
[399433253,1766347410962,-259.96044576,8.056e-05,2]
[399433255,1766347442848,-358.74378929,7.77e-05,2]
[399433256,1766347446924,-247.48699336,7.77e-05,2]
[399433257,1766347450851,-243.57921735,7.77e-05,2]
[399433258,1766347450881,-4512.8515653,7.975e-05,2]
[399433259,1766347521453,-845.47,7.772e-05,2]
[399433260,1766347521482,-3309.07,7.895e-05,2]
[399433261,1766347599262,-840.14,7.759e-05,2]
[399433262,1766347599291,-1690.93,7.895e-05,2]
[399433263,1766347599318,-286.49742522,7.935e-05,2]
[399433264,1766347599345,-487.1484347,7.975e-05,2]
[399433265,1766347599371,-300.0,8.053e-05,2]
[399433266,1766347599398,-300.0,8.054e-05,2]
[399433267,1766347599425,-231.0,8.054e-05,2]
[399433268,1766347599452,-300.0,8.054e-05,2]
[399433270,1766347673408,-247.48699336,7.893e-05,2]
[399433271,1766347680556,831.36,7.771e-05,2]
[399433272,1766347713459,216.93491085,7.686e-05,2]
[399433275,1766347763227,820.78,7.799e-05,2]
[399433287,1766347806420,5000.0,7.895e-05,2]
[399433288,1766347809276,320.88920711,7.657e-05,2]
[399433296,1766347829315,3641.40588204,7.895e-05,2]
[399433297,1766347829338,1358.59411796,7.895e-05,2]
[399433321,1766347831973,-355.70204258,7.966e-05,2]
[399433323,1766347831983,-532.0,7.966e-05,2]
[399433325,1766347831992,-300.0,8.052e-05,2]
[399433327,1766347832002,-1200.0,8.052e-05,2]
[399433328,1766347832011,-300.0,8.052e-05,2]
[399433329,1766347832020,-450.0,8.053e-05,2]
[399433330,1766347832029,-500.0,8.053e-05,2]
[399433331,1766347832038,-500.0,8.053e-05,2]
[399433332,1766347832047,-500.0,8.053e-05,2]
[399433333,1766347832056,-500.0,8.053e-05,2]
[399433334,1766347832065,-500.0,8.053e-05,2]
[399433335,1766347832074,-500.0,8.053e-05,2]
[399433336,1766347832083,-500.0,8.053e-05,2]
[399433338,1766347832092,-500.0,8.053e-05,2]
[399433340,1766347832102,-500.0,8.053e-05,2]
[399433342,1766347832111,-633.24282148,8.053e-05,2]
[399433344,1766347832120,-620.99604459,8.053e-05,2]
[399433345,1766347832129,-500.0,8.053e-05,2]
[399433346,1766347832138,-500.0,8.053e-05,2]
[399433347,1766347832147,-500.0,8.053e-05,2]
[399433348,1766347832156,-500.0,8.053e-05,2]
[399433349,1766347832166,-500.0,8.053e-05,2]
[399433350,1766347832175,-500.0,8.053e-05,2]
[399433351,1766347832185,-500.0,8.053e-05,2]
[399433352,1766347832195,-500.0,8.053e-05,2]
[399433353,1766347832205,-500.0,8.053e-05,2]
[399433354,1766347832214,-500.0,8.053e-05,2]
[399433355,1766347832223,-500.0,8.053e-05,2]
[399433356,1766347832232,-177.31279988,8.053e-05,2]
[399433357,1766347832242,-500.0,8.053e-05,2]
[399433358,1766347832251,-500.0,8.053e-05,2]
[399433359,1766347832260,-500.0,8.053e-05,2]
[399433360,1766347832270,-252.76851968,8.053e-05,2]
[399433361,1766347832280,-500.0,8.053e-05,2]
[399433362,1766347832290,-500.0,8.053e-05,2]
[399433363,1766347832300,-500.0,8.053e-05,2]